[Event "Late-Titled-Tuesday-Blitz-October-17-2023"]
[Site "Chess.com"]
[Date "2023.10.17"]
[Round "2"]
[White "brunomorado"]
[Black "SchmakAttack"]
[Result "0-1"]
[WhiteElo "2444"]
[BlackElo "2744"]
[TimeControl "180+1"]
[EndTime "14:18:38 PDT"]
[Termination "SchmakAttack won by checkmate"]

1. d4 {[%clk 0:03:00]} 1... Nf6 {[%clk 0:02:58.3]} 2. Nc3 {[%clk 0:03:00.9]}
2... d5 {[%clk 0:02:58.1]} 3. Bg5 {[%clk 0:03:01.4]} 3... e6 {[%clk 0:02:57.6]}
4. e4 {[%clk 0:03:01.4]} 4... dxe4 {[%clk 0:02:57.9]} 5. Nxe4 {[%clk 0:03:02.3]}
5... Be7 {[%clk 0:02:58.5]} 6. Bxf6 {[%clk 0:03:03]} 6... gxf6 {[%clk
0:02:58.8]} 7. g3 {[%clk 0:03:02.9]} 7... f5 {[%clk 0:02:51.3]} 8. Nc3 {[%clk
0:03:02.9]} 8... Bf6 {[%clk 0:02:51.5]} 9. Nge2 {[%clk 0:03:03.5]} 9... Nc6
{[%clk 0:02:37.2]} 10. d5 {[%clk 0:03:03.6]} 10... Ne5 {[%clk 0:02:37.4]} 11.
Bg2 {[%clk 0:03:01.8]} 11... Nc4 {[%clk 0:02:27.3]} 12. b3 {[%clk 0:02:55.9]}
12... Nb6 {[%clk 0:02:27]} 13. Rc1 {[%clk 0:02:51.8]} 13... O-O {[%clk
0:02:23.2]} 14. O-O {[%clk 0:02:51.5]} 14... e5 {[%clk 0:02:18.5]} 15. Qd2
{[%clk 0:02:46.8]} 15... Qe7 {[%clk 0:02:13.1]} 16. Rfe1 {[%clk 0:02:45.4]}
16... Rd8 {[%clk 0:02:09.6]} 17. Qe3 {[%clk 0:02:34.2]} 17... Bd7 {[%clk
0:01:49.3]} 18. a4 {[%clk 0:02:31.8]} 18... a5 {[%clk 0:01:48.6]} 19. Rcd1
{[%clk 0:02:32]} 19... Be8 {[%clk 0:01:48.4]} 20. Qf3 {[%clk 0:02:20.3]} 20...
Bd7 {[%clk 0:01:48.4]} 21. Bh3 {[%clk 0:02:17.8]} 21... e4 {[%clk 0:01:47]} 22.
Qf4 {[%clk 0:02:04.5]} 22... Be5 {[%clk 0:01:46.6]} 23. Qh6 {[%clk 0:01:56.8]}
23... Qd6 {[%clk 0:01:38.8]} 24. Qxd6 {[%clk 0:01:47.9]} 24... cxd6 {[%clk
0:01:39.7]} 25. Nb1 {[%clk 0:01:35.8]} 25... Rac8 {[%clk 0:01:19.6]} 26. c4
{[%clk 0:01:35]} 26... Na8 {[%clk 0:01:20.2]} 27. Nd4 {[%clk 0:01:31.4]} 27...
Bxd4 {[%clk 0:01:19.9]} 28. Rxd4 {[%clk 0:01:32.3]} 28... Nc7 {[%clk 0:01:16.2]}
29. f3 {[%clk 0:01:25.7]} 29... exf3 {[%clk 0:01:13.1]} 30. Nd2 {[%clk
0:01:23.5]} 30... Re8 {[%clk 0:01:11.9]} 31. Nxf3 {[%clk 0:01:23.3]} 31... Rxe1+
{[%clk 0:01:09.4]} 32. Nxe1 {[%clk 0:01:24.2]} 32... Re8 {[%clk 0:01:09.8]} 33.
Kf2 {[%clk 0:01:24.2]} 33... Kg7 {[%clk 0:01:10.4]} 34. Rf4 {[%clk 0:01:21.3]}
34... Kg6 {[%clk 0:01:10.6]} 35. Nf3 {[%clk 0:01:21.7]} 35... Kf6 {[%clk
0:01:06.3]} 36. Nd4 {[%clk 0:01:17]} 36... Re5 {[%clk 0:01:05.3]} 37. Nf3 {[%clk
0:01:11.8]} 37... Re7 {[%clk 0:01:01]} 38. Nd4 {[%clk 0:01:04]} 38... Re5 {[%clk
0:01:00.9]} 39. Bxf5 {[%clk 0:00:53.3]} 39... Bxf5 {[%clk 0:00:57.9]} 40. g4
{[%clk 0:00:52.6]} 40... Na6 {[%clk 0:00:51]} 41. Nxf5 {[%clk 0:00:31.5]} 41...
Nc5 {[%clk 0:00:51.2]} 42. Nxd6+ {[%clk 0:00:20]} 42... Ke7 {[%clk 0:00:51.5]}
43. Nxf7 {[%clk 0:00:08]} 43... Nd3+ {[%clk 0:00:51.8]} 44. Kf3 {[%clk 0:00:08]}
44... Ne1+ {[%clk 0:00:51.8]} 45. Kf2 {[%clk 0:00:08.3]} 45... Nd3+ {[%clk
0:00:51.7]} 46. Kg3 {[%clk 0:00:08.4]} 46... Re1 {[%clk 0:00:50.6]} 47. Rf3
{[%clk 0:00:07]} 47... Nc5 {[%clk 0:00:49.9]} 48. Ng5 {[%clk 0:00:06.9]} 48...
h6 {[%clk 0:00:49.2]} 49. Nh3 {[%clk 0:00:04.6]} 49... Rb1 {[%clk 0:00:42.8]}
50. Nf4 {[%clk 0:00:04]} 50... Nxb3 {[%clk 0:00:42.7]} 51. Ng6+ {[%clk
0:00:03.9]} 51... Kd7 {[%clk 0:00:42.2]} 52. Rf7+ {[%clk 0:00:04.3]} 52... Kc8
{[%clk 0:00:39.8]} 53. Ne7+ {[%clk 0:00:04.7]} 53... Kd7 {[%clk 0:00:40.1]} 54.
Nf5+ {[%clk 0:00:05]} 54... Kc8 {[%clk 0:00:40.1]} 55. d6 {[%clk 0:00:05.3]}
55... Nc5 {[%clk 0:00:39.8]} 56. Rf8+ {[%clk 0:00:05]} 56... Kd7 {[%clk
0:00:40.3]} 57. Rf7+ {[%clk 0:00:05.9]} 57... Kd8 {[%clk 0:00:39.6]} 58. Rc7
{[%clk 0:00:05.5]} 58... Ne4+ {[%clk 0:00:38.5]} 59. Kf4 {[%clk 0:00:05.8]}
59... Nxd6 {[%clk 0:00:39.1]} 60. Rh7 {[%clk 0:00:06.7]} 60... Nxc4 {[%clk
0:00:34.2]} 61. Rxh6 {[%clk 0:00:07]} 61... Rb4 {[%clk 0:00:34.4]} 62. Kg5
{[%clk 0:00:06.3]} 62... Ne5 {[%clk 0:00:33.5]} 63. Nd6 {[%clk 0:00:06.3]} 63...
Kd7 {[%clk 0:00:29]} 64. Kf5 {[%clk 0:00:05.7]} 64... Nxg4 {[%clk 0:00:29]} 65.
Rh4 {[%clk 0:00:05.9]} 65... Ne3+ {[%clk 0:00:29.3]} 66. Kg5 {[%clk 0:00:05.5]}
66... Rxh4 {[%clk 0:00:29.1]} 67. Kxh4 {[%clk 0:00:06.4]} 67... Kxd6 {[%clk
0:00:29.7]} 68. Kg5 {[%clk 0:00:07.3]} 68... Ng2 {[%clk 0:00:29.3]} 69. Kg4
{[%clk 0:00:06.6]} 69... b5 {[%clk 0:00:29.8]} 70. Kg3 {[%clk 0:00:07.5]} 70...
bxa4 {[%clk 0:00:30.1]} 71. Kxg2 {[%clk 0:00:07.7]} 71... a3 {[%clk 0:00:31]}
72. Kf2 {[%clk 0:00:08.6]} 72... a2 {[%clk 0:00:31.9]} 73. h4 {[%clk 0:00:09.5]}
73... a1=Q {[%clk 0:00:32.8]} 74. h5 {[%clk 0:00:10.3]} 74... a4 {[%clk
0:00:33]} 75. h6 {[%clk 0:00:11.2]} 75... a3 {[%clk 0:00:33.7]} 76. Kf3 {[%clk
0:00:12]} 76... Qh8 {[%clk 0:00:34.2]} 77. Kg4 {[%clk 0:00:12.9]} 77... a2
{[%clk 0:00:35]} 78. Kg5 {[%clk 0:00:13.8]} 78... a1=Q {[%clk 0:00:35.7]} 79.
Kg6 {[%clk 0:00:14.6]} 79... Qaf6+ {[%clk 0:00:35.9]} 80. Kh5 {[%clk 0:00:15.1]}
80... Qhxh6+ {[%clk 0:00:36.3]} 81. Kg4 {[%clk 0:00:16]} 81... Qff4# {[%clk
0:00:36.9]} 0-1

[Event "Late-Titled-Tuesday-Blitz-October-17-2023"]
[Site "Chess.com"]
[Date "2023.10.17"]
[Round "2"]
[White "karinachess1"]
[Black "Zhigalko_Sergei"]
[Result "0-1"]
[WhiteElo "2603"]
[BlackElo "2952"]
[TimeControl "180+1"]
[EndTime "14:18:39 PDT"]
[Termination "Zhigalko_Sergei won by resignation"]

1. d4 {[%clk 0:03:00.9]} 1... Nf6 {[%clk 0:02:59.7]} 2. c4 {[%clk 0:02:59.7]}
2... e6 {[%clk 0:03:00]} 3. Nc3 {[%clk 0:02:57.9]} 3... Bb4 {[%clk 0:02:59.8]}
4. Qc2 {[%clk 0:02:58.3]} 4... O-O {[%clk 0:02:59.6]} 5. a3 {[%clk 0:02:58.5]}
5... Bxc3+ {[%clk 0:03:00]} 6. Qxc3 {[%clk 0:02:59.4]} 6... d6 {[%clk
0:03:00.6]} 7. Nf3 {[%clk 0:02:55.5]} 7... Nbd7 {[%clk 0:03:00.3]} 8. g3 {[%clk
0:02:55]} 8... b6 {[%clk 0:02:59.9]} 9. Bg2 {[%clk 0:02:55]} 9... Bb7 {[%clk
0:03:00.1]} 10. O-O {[%clk 0:02:54.3]} 10... a5 {[%clk 0:02:59.7]} 11. Bf4
{[%clk 0:02:44.5]} 11... Re8 {[%clk 0:02:59.2]} 12. Rfd1 {[%clk 0:02:40.8]}
12... h6 {[%clk 0:02:58.9]} 13. b4 {[%clk 0:02:29.1]} 13... Qe7 {[%clk 0:02:55]}
14. Rac1 {[%clk 0:02:10.7]} 14... Be4 {[%clk 0:02:28.5]} 15. Be3 {[%clk
0:01:57.3]} 15... axb4 {[%clk 0:01:57.6]} 16. axb4 {[%clk 0:01:58.2]} 16... b5
{[%clk 0:01:58.3]} 17. Nd2 {[%clk 0:01:33.4]} 17... Bxg2 {[%clk 0:01:57.2]} 18.
Kxg2 {[%clk 0:01:34.3]} 18... bxc4 {[%clk 0:01:50.3]} 19. Nxc4 {[%clk
0:01:33.8]} 19... Nd5 {[%clk 0:01:46.8]} 20. Qb3 {[%clk 0:01:21.3]} 20... Reb8
{[%clk 0:01:44.5]} 21. Bd2 {[%clk 0:01:19.5]} 21... f5 {[%clk 0:01:22.9]} 22.
Ra1 {[%clk 0:01:04.3]} 22... N7f6 {[%clk 0:01:17.4]} 23. Na5 {[%clk 0:00:58.5]}
23... Qd7 {[%clk 0:01:17.1]} 24. Qc4 {[%clk 0:00:54.9]} 24... Rb6 {[%clk
0:01:14]} 25. Rdb1 {[%clk 0:00:35.5]} 25... Ne4 {[%clk 0:01:13.2]} 26. Be1
{[%clk 0:00:34.4]} 26... Rab8 {[%clk 0:01:08]} 27. Rb3 {[%clk 0:00:19.8]} 27...
Qb5 {[%clk 0:00:36.7]} 28. Rab1 {[%clk 0:00:16.8]} 28... Qxc4 {[%clk 0:00:33.5]}
29. Nxc4 {[%clk 0:00:17.7]} 29... Rc6 {[%clk 0:00:34.2]} 30. Ne3 {[%clk
0:00:12.5]} 30... Nxe3+ {[%clk 0:00:28]} 31. Rxe3 {[%clk 0:00:12.1]} 31... Kf7
{[%clk 0:00:28.6]} 32. f3 {[%clk 0:00:10.9]} 32... Nf6 {[%clk 0:00:28.9]} 33.
Reb3 {[%clk 0:00:09.4]} 33... Rc4 {[%clk 0:00:25.3]} 34. e3 {[%clk 0:00:08.6]}
34... g5 {[%clk 0:00:22.3]} 35. R1b2 {[%clk 0:00:07.9]} 35... g4 {[%clk
0:00:21.8]} 36. fxg4 {[%clk 0:00:06.5]} 36... Nxg4 {[%clk 0:00:20.4]} 37. Bd2
{[%clk 0:00:06.8]} 37... Nf6 {[%clk 0:00:18.8]} 38. b5 {[%clk 0:00:07.3]} 38...
Nd5 {[%clk 0:00:16.5]} 39. Kf2 {[%clk 0:00:05.9]} 39... Ra4 {[%clk 0:00:14.8]}
40. Ke2 {[%clk 0:00:06.2]} 40... h5 {[%clk 0:00:15.2]} 41. Kd3 {[%clk 0:00:06]}
41... Rba8 {[%clk 0:00:13.4]} 42. Rb1 {[%clk 0:00:05.9]} 42... Ra2 {[%clk
0:00:13.4]} 43. R3b2 {[%clk 0:00:06.3]} 43... R8a3+ {[%clk 0:00:12.2]} 44. Rb3
{[%clk 0:00:06.6]} 44... Ke7 {[%clk 0:00:08.9]} 45. Rxa3 {[%clk 0:00:05.8]}
45... Rxa3+ {[%clk 0:00:09.8]} 46. Ke2 {[%clk 0:00:06.5]} 46... Ra2 {[%clk
0:00:09.5]} 47. Kd3 {[%clk 0:00:06.5]} 47... Kd7 {[%clk 0:00:10.1]} 48. Rb3
{[%clk 0:00:05.3]} 48... Ra1 {[%clk 0:00:10.3]} 49. Rb2 {[%clk 0:00:04]} 49...
Rh1 {[%clk 0:00:09.2]} 50. Ba5 {[%clk 0:00:04.2]} 50... Rd1+ {[%clk 0:00:08.5]}
51. Ke2 {[%clk 0:00:04.3]} 51... Ra1 {[%clk 0:00:07.7]} 52. Bd2 {[%clk
0:00:04.5]} 52... Rh1 {[%clk 0:00:07.8]} 53. h4 {[%clk 0:00:04.4]} 53... Rh2+
{[%clk 0:00:07.8]} 54. Kd3 {[%clk 0:00:05]} 54... Rg2 {[%clk 0:00:07.8]} 55. Ra2
{[%clk 0:00:04.3]} 55... Rxg3 {[%clk 0:00:07.6]} 56. Ra8 {[%clk 0:00:04.5]}
56... f4 {[%clk 0:00:07.4]} 57. Rh8 {[%clk 0:00:02.9]} 57... fxe3 {[%clk
0:00:07.5]} 58. Be1 {[%clk 0:00:03.4]} 58... Rh3 {[%clk 0:00:05.8]} 59. Rxh5
{[%clk 0:00:02.8]} 59... Nf4+ {[%clk 0:00:06]} 60. Ke4 {[%clk 0:00:03.4]} 60...
Nxh5 {[%clk 0:00:06.9]} 0-1

[Event "Late-Titled-Tuesday-Blitz-October-17-2023"]
[Site "Chess.com"]
[Date "2023.10.17"]
[Round "2"]
[White "Sjakkerntobi"]
[Black "NCchamp"]
[Result "1/2-1/2"]
[WhiteElo "2489"]
[BlackElo "2303"]
[TimeControl "180+1"]
[EndTime "14:18:41 PDT"]
[Termination "Game drawn - insufficient material"]

1. f4 {[%clk 0:03:00.9]} 1... d5 {[%clk 0:02:59.4]} 2. Nf3 {[%clk 0:03:01]} 2...
Nf6 {[%clk 0:02:59.1]} 3. g3 {[%clk 0:03:01.5]} 3... c5 {[%clk 0:02:55.8]} 4.
Bg2 {[%clk 0:03:01.8]} 4... Nc6 {[%clk 0:02:56.4]} 5. O-O {[%clk 0:03:02.3]}
5... g6 {[%clk 0:02:54.5]} 6. d3 {[%clk 0:03:00.4]} 6... Bg7 {[%clk 0:02:55.1]}
7. Nc3 {[%clk 0:03:00.7]} 7... O-O {[%clk 0:02:55.3]} 8. e4 {[%clk 0:03:01.3]}
8... Rb8 {[%clk 0:02:44.6]} 9. e5 {[%clk 0:02:53.3]} 9... Ne8 {[%clk 0:02:44.7]}
10. d4 {[%clk 0:02:53.4]} 10... c4 {[%clk 0:02:38.3]} 11. Be3 {[%clk 0:02:52.6]}
11... b5 {[%clk 0:02:36.9]} 12. Qd2 {[%clk 0:02:44.3]} 12... a5 {[%clk
0:02:27.6]} 13. h3 {[%clk 0:02:31.7]} 13... Nc7 {[%clk 0:02:23.5]} 14. g4 {[%clk
0:02:31.4]} 14... f5 {[%clk 0:02:14.6]} 15. exf6 {[%clk 0:02:30.5]} 15... exf6
{[%clk 0:02:14.1]} 16. Rae1 {[%clk 0:02:28.4]} 16... Be6 {[%clk 0:02:04.8]} 17.
Nh4 {[%clk 0:02:15.1]} 17... Bf7 {[%clk 0:02:03.3]} 18. f5 {[%clk 0:02:14.5]}
18... g5 {[%clk 0:01:59]} 19. Nf3 {[%clk 0:02:14.8]} 19... h6 {[%clk 0:01:55.4]}
20. Bf2 {[%clk 0:02:13.5]} 20... Re8 {[%clk 0:01:54.5]} 21. Bg3 {[%clk
0:02:13.6]} 21... Qd7 {[%clk 0:01:30.3]} 22. h4 {[%clk 0:01:54.2]} 22... Bf8
{[%clk 0:01:29.9]} 23. hxg5 {[%clk 0:01:53.8]} 23... hxg5 {[%clk 0:01:29.8]} 24.
Nxg5 {[%clk 0:01:25.1]} 24... fxg5 {[%clk 0:01:29.3]} 25. Qxg5+ {[%clk 0:01:26]}
25... Kh7 {[%clk 0:01:17]} 26. Kf2 {[%clk 0:01:11.2]} 26... Rxe1 {[%clk
0:01:04.4]} 27. Rxe1 {[%clk 0:01:10.7]} 27... Bg7 {[%clk 0:00:52.4]} 28. Rh1+
{[%clk 0:01:04.4]} 28... Kg8 {[%clk 0:00:52.5]} 29. Bxc7 {[%clk 0:00:53.8]}
29... Qxc7 {[%clk 0:00:48]} 30. f6 {[%clk 0:00:53.6]} 30... Be6 {[%clk
0:00:40.4]} 31. Nxd5 {[%clk 0:00:39.6]} 31... Qf7 {[%clk 0:00:40]} 32. Kg1
{[%clk 0:00:21.8]} 32... Rd8 {[%clk 0:00:20.8]} 33. fxg7 {[%clk 0:00:21.1]}
33... Qxg7 {[%clk 0:00:18.2]} 34. Nf6+ {[%clk 0:00:17.3]} 34... Kf8 {[%clk
0:00:17.9]} 35. Nh7+ {[%clk 0:00:17.5]} 35... Kg8 {[%clk 0:00:17.9]} 36. Qxg7+
{[%clk 0:00:16.1]} 36... Kxg7 {[%clk 0:00:18]} 37. Bxc6 {[%clk 0:00:16.8]} 37...
Rxd4 {[%clk 0:00:16.7]} 38. Bxb5 {[%clk 0:00:14.9]} 38... Rd1+ {[%clk
0:00:15.6]} 39. Kg2 {[%clk 0:00:15.2]} 39... Bd5+ {[%clk 0:00:15.8]} 40. Kg3
{[%clk 0:00:15.3]} 40... Rxh1 {[%clk 0:00:15.5]} 41. Ng5 {[%clk 0:00:16]} 41...
Rg1+ {[%clk 0:00:15.1]} 42. Kf4 {[%clk 0:00:15.8]} 42... Rg2 {[%clk 0:00:13.5]}
43. Ba4 {[%clk 0:00:15.6]} 43... Rg1 {[%clk 0:00:09.6]} 44. Ke5 {[%clk
0:00:13.8]} 44... Rd1 {[%clk 0:00:08.8]} 45. Ne6+ {[%clk 0:00:11.3]} 45... Bxe6
{[%clk 0:00:08.9]} 46. Kxe6 {[%clk 0:00:11.9]} 46... Rd4 {[%clk 0:00:07.9]} 47.
g5 {[%clk 0:00:10.7]} 47... Rg4 {[%clk 0:00:07.8]} 48. Ke5 {[%clk 0:00:10.3]}
48... Rxg5+ {[%clk 0:00:07.7]} 49. Kd4 {[%clk 0:00:11]} 49... Rg4+ {[%clk
0:00:07.9]} 50. Kc3 {[%clk 0:00:11.6]} 50... Kf6 {[%clk 0:00:08.3]} 51. Bb5
{[%clk 0:00:12.3]} 51... Ke5 {[%clk 0:00:08.8]} 52. Bxc4 {[%clk 0:00:13]} 52...
Kd6 {[%clk 0:00:09.2]} 53. Bd3 {[%clk 0:00:13.1]} 53... Kc5 {[%clk 0:00:08.9]}
54. Kb3 {[%clk 0:00:13.6]} 54... Rg3 {[%clk 0:00:08.7]} 55. Ka3 {[%clk
0:00:13.7]} 55... Re3 {[%clk 0:00:08.1]} 56. Ka4 {[%clk 0:00:13.9]} 56... Kb6
{[%clk 0:00:08.1]} 57. a3 {[%clk 0:00:14.7]} 57... Rg3 {[%clk 0:00:08]} 58. b4
{[%clk 0:00:14.7]} 58... Rg4 {[%clk 0:00:08.3]} 59. Kb3 {[%clk 0:00:14.6]} 59...
axb4 {[%clk 0:00:08.1]} 60. axb4 {[%clk 0:00:15.5]} 60... Rg3 {[%clk 0:00:08.5]}
61. Kc3 {[%clk 0:00:15.6]} 61... Rh3 {[%clk 0:00:09.1]} 62. Kd4 {[%clk
0:00:15.9]} 62... Rh4+ {[%clk 0:00:08.4]} 63. Kd5 {[%clk 0:00:16.2]} 63... Rxb4
{[%clk 0:00:07.4]} 64. Ke5 {[%clk 0:00:14.1]} 64... Rb2 {[%clk 0:00:07.3]} 65.
Kd4 {[%clk 0:00:14.6]} 65... Rxc2 {[%clk 0:00:07.5]} 66. Bxc2 {[%clk 0:00:15.5]}
1/2-1/2

[Event "Late-Titled-Tuesday-Blitz-October-17-2023"]
[Site "Chess.com"]
[Date "2023.10.17"]
[Round "2"]
[White "GaiozNigalidze"]
[Black "Tunahan_Makaraci"]
[Result "1-0"]
[WhiteElo "2706"]
[BlackElo "2352"]
[TimeControl "180+1"]
[EndTime "14:18:43 PDT"]
[Termination "GaiozNigalidze won by resignation"]

1. d4 {[%clk 0:02:57.5]} 1... d5 {[%clk 0:02:59.8]} 2. c4 {[%clk 0:02:57.2]}
2... e6 {[%clk 0:03:00]} 3. Nc3 {[%clk 0:02:56.4]} 3... c5 {[%clk 0:03:00.3]} 4.
cxd5 {[%clk 0:02:53.9]} 4... exd5 {[%clk 0:03:01.2]} 5. Nf3 {[%clk 0:02:53.7]}
5... Nc6 {[%clk 0:03:01.3]} 6. e3 {[%clk 0:02:49.6]} 6... c4 {[%clk 0:03:00.6]}
7. Be2 {[%clk 0:02:48.9]} 7... Nf6 {[%clk 0:02:59.6]} 8. O-O {[%clk 0:02:49]}
8... Bb4 {[%clk 0:03:00.2]} 9. Bd2 {[%clk 0:02:48.9]} 9... O-O {[%clk
0:02:59.7]} 10. a3 {[%clk 0:02:49.4]} 10... Bxc3 {[%clk 0:02:59.7]} 11. Bxc3
{[%clk 0:02:50.3]} 11... Re8 {[%clk 0:02:56]} 12. Rc1 {[%clk 0:02:48]} 12... Bg4
{[%clk 0:02:54.1]} 13. h3 {[%clk 0:02:41.3]} 13... Bh5 {[%clk 0:02:53.8]} 14. g4
{[%clk 0:02:36]} 14... Bg6 {[%clk 0:02:53.2]} 15. Ne5 {[%clk 0:02:30.8]} 15...
Ne4 {[%clk 0:02:50.6]} 16. Nxg6 {[%clk 0:02:18]} 16... hxg6 {[%clk 0:02:49.8]}
17. Bf3 {[%clk 0:02:16.9]} 17... Qh4 {[%clk 0:02:44.3]} 18. Bg2 {[%clk
0:02:11.5]} 18... f5 {[%clk 0:02:41.4]} 19. Be1 {[%clk 0:02:02.3]} 19... Qh6
{[%clk 0:02:24.7]} 20. b3 {[%clk 0:01:55.7]} 20... b5 {[%clk 0:02:17.8]} 21.
bxc4 {[%clk 0:01:54.4]} 21... dxc4 {[%clk 0:02:14.6]} 22. Qf3 {[%clk 0:01:25]}
22... Rf8 {[%clk 0:02:04.4]} 23. a4 {[%clk 0:01:22.5]} 23... a6 {[%clk
0:02:03.9]} 24. axb5 {[%clk 0:01:21.1]} 24... axb5 {[%clk 0:02:04.8]} 25. Rb1
{[%clk 0:01:20.5]} 25... Rab8 {[%clk 0:01:54.7]} 26. Qe2 {[%clk 0:01:20.6]}
26... Qg5 {[%clk 0:01:25.5]} 27. Rxb5 {[%clk 0:01:14]} 27... Rxb5 {[%clk
0:01:17.2]} 28. Qxc4+ {[%clk 0:01:14]} 28... Kh7 {[%clk 0:01:17.2]} 29. Qxb5
{[%clk 0:01:13.9]} 29... Qf6 {[%clk 0:01:12.2]} 30. Qd5 {[%clk 0:00:33.9]} 30...
Rd8 {[%clk 0:01:09.1]} 31. Qc4 {[%clk 0:00:32.5]} 31... Ne7 {[%clk 0:00:57.7]}
32. Qc7 {[%clk 0:00:31.3]} 32... Nd5 {[%clk 0:00:55.4]} 33. Qb7 {[%clk
0:00:28.7]} 33... Nec3 {[%clk 0:00:44.3]} 34. Qb3 {[%clk 0:00:24]} 34... Ne4
{[%clk 0:00:37.4]} 35. f3 {[%clk 0:00:22.1]} 35... Ng5 {[%clk 0:00:35]} 36. h4
{[%clk 0:00:19.9]} 36... Ne6 {[%clk 0:00:33.6]} 37. g5 {[%clk 0:00:19.8]} 37...
Qe7 {[%clk 0:00:33.1]} 38. f4 {[%clk 0:00:20.1]} 38... Nec7 {[%clk 0:00:29.6]}
39. Bd2 {[%clk 0:00:20.2]} 39... Qe6 {[%clk 0:00:23.2]} 40. Qd3 {[%clk
0:00:14.2]} 40... Rb8 {[%clk 0:00:18.4]} 41. Bf3 {[%clk 0:00:14.1]} 41... Rb2
{[%clk 0:00:17.6]} 42. Rf2 {[%clk 0:00:14.4]} 42... Nb4 {[%clk 0:00:15.4]} 43.
Qa3 {[%clk 0:00:12.4]} 43... Rb1+ {[%clk 0:00:14.4]} 44. Kg2 {[%clk 0:00:12.5]}
44... Ncd5 {[%clk 0:00:14.6]} 45. h5 {[%clk 0:00:11.9]} 45... gxh5 {[%clk
0:00:14.4]} 46. Bxh5 {[%clk 0:00:11.2]} 46... Nc2 {[%clk 0:00:12]} 47. Qd3
{[%clk 0:00:07.5]} 47... Ncxe3+ {[%clk 0:00:12.2]} 48. Bxe3 {[%clk 0:00:07.8]}
48... Nxe3+ {[%clk 0:00:13.1]} 49. Kh2 {[%clk 0:00:08.4]} 49... Ra1 {[%clk
0:00:06]} 50. Bf3 {[%clk 0:00:07.8]} 50... g6 {[%clk 0:00:05.9]} 51. d5 {[%clk
0:00:07.8]} 51... Qe7 {[%clk 0:00:03.6]} 52. d6 {[%clk 0:00:07.8]} 52... Qe6
{[%clk 0:00:04]} 53. d7 {[%clk 0:00:08.3]} 53... Ra8 {[%clk 0:00:02.7]} 54. d8=Q
{[%clk 0:00:08.1]} 54... Rxd8 {[%clk 0:00:02.9]} 55. Qxd8 {[%clk 0:00:08.8]}
55... Ng4+ {[%clk 0:00:03]} 56. Bxg4 {[%clk 0:00:08.4]} 56... fxg4 {[%clk
0:00:03.9]} 57. Qc7+ {[%clk 0:00:08.5]} 57... Kg8 {[%clk 0:00:03.8]} 58. Qb8+
{[%clk 0:00:08.4]} 58... Kh7 {[%clk 0:00:03.8]} 59. Qe5 {[%clk 0:00:08.4]} 59...
Qb3 {[%clk 0:00:02.7]} 60. Qc7+ {[%clk 0:00:08.2]} 60... Kg8 {[%clk 0:00:02.7]}
61. Qd8+ {[%clk 0:00:08.2]} 61... Kh7 {[%clk 0:00:02.8]} 62. Qd7+ {[%clk
0:00:08.4]} 62... Kg8 {[%clk 0:00:02.8]} 63. Qxg4 {[%clk 0:00:08.6]} 1-0

[Event "Late-Titled-Tuesday-Blitz-October-17-2023"]
[Site "Chess.com"]
[Date "2023.10.17"]
[Round "2"]
[White "akanga001"]
[Black "cthulhuuu"]
[Result "0-1"]
[WhiteElo "2047"]
[BlackElo "2415"]
[TimeControl "180+1"]
[EndTime "14:18:45 PDT"]
[Termination "cthulhuuu won on time"]

1. d4 {[%clk 0:02:53.3]} 1... Nf6 {[%clk 0:02:59.7]} 2. c4 {[%clk 0:02:53.7]}
2... e5 {[%clk 0:02:58.8]} 3. dxe5 {[%clk 0:02:52.8]} 3... Ng4 {[%clk
0:02:59.5]} 4. Nf3 {[%clk 0:02:52.6]} 4... Bc5 {[%clk 0:02:59.5]} 5. e3 {[%clk
0:02:52.1]} 5... Nc6 {[%clk 0:03:00.1]} 6. g3 {[%clk 0:02:51.6]} 6... O-O {[%clk
0:02:58.5]} 7. Bg2 {[%clk 0:02:51.8]} 7... Re8 {[%clk 0:02:59]} 8. O-O {[%clk
0:02:50.4]} 8... a5 {[%clk 0:02:58.3]} 9. Nc3 {[%clk 0:02:50.6]} 9... Ngxe5
{[%clk 0:02:55.6]} 10. Rb1 {[%clk 0:02:39.4]} 10... d6 {[%clk 0:02:52.1]} 11. a3
{[%clk 0:02:35.2]} 11... Bg4 {[%clk 0:02:47.7]} 12. Nd5 {[%clk 0:02:25.2]} 12...
Nxc4 {[%clk 0:02:22.1]} 13. b4 {[%clk 0:02:21.6]} 13... Ba7 {[%clk 0:02:12.7]}
14. h3 {[%clk 0:02:20]} 14... Bf5 {[%clk 0:02:07.2]} 15. Rb3 {[%clk 0:02:16.5]}
15... Be4 {[%clk 0:01:55.2]} 16. Nd4 {[%clk 0:02:10]} 16... Bxg2 {[%clk
0:01:48]} 17. Kxg2 {[%clk 0:02:10.9]} 17... Nxd4 {[%clk 0:01:43]} 18. exd4
{[%clk 0:02:10.3]} 18... a4 {[%clk 0:01:43.1]} 19. Rc3 {[%clk 0:02:07.6]} 19...
b5 {[%clk 0:01:43.6]} 20. Rf3 {[%clk 0:02:03.4]} 20... c6 {[%clk 0:01:39.5]} 21.
Nf4 {[%clk 0:01:58.8]} 21... d5 {[%clk 0:01:40.1]} 22. Re1 {[%clk 0:01:51.3]}
22... Rxe1 {[%clk 0:01:36.8]} 23. Qxe1 {[%clk 0:01:50.4]} 23... Qe8 {[%clk
0:01:37.7]} 24. Qxe8+ {[%clk 0:01:31.2]} 24... Rxe8 {[%clk 0:01:38.6]} 25. Nh5
{[%clk 0:01:28.7]} 25... Bxd4 {[%clk 0:01:30.7]} 26. Rd3 {[%clk 0:01:11]} 26...
Bb2 {[%clk 0:01:17.3]} 27. Bxb2 {[%clk 0:01:09.9]} 27... Nxb2 {[%clk 0:01:18.2]}
28. Rc3 {[%clk 0:01:08]} 28... Nc4 {[%clk 0:01:17.8]} 29. Nf4 {[%clk 0:01:06.1]}
29... g5 {[%clk 0:00:46]} 30. Nd3 {[%clk 0:01:05.2]} 30... Kg7 {[%clk
0:00:46.7]} 31. Nc5 {[%clk 0:01:04.4]} 31... Kg6 {[%clk 0:00:46.5]} 32. g4
{[%clk 0:00:49.8]} 32... h5 {[%clk 0:00:43.8]} 33. Nb7 {[%clk 0:00:39.7]} 33...
hxg4 {[%clk 0:00:40.9]} 34. hxg4 {[%clk 0:00:38.9]} 34... Re4 {[%clk 0:00:41.8]}
35. f3 {[%clk 0:00:38.5]} 35... Re2+ {[%clk 0:00:41.4]} 36. Kg3 {[%clk
0:00:38.6]} 36... Re3 {[%clk 0:00:34.6]} 37. Rc1 {[%clk 0:00:31.8]} 37... Ne5
{[%clk 0:00:33.1]} 38. Rf1 {[%clk 0:00:28.3]} 38... Rxa3 {[%clk 0:00:32.7]} 39.
Nd8 {[%clk 0:00:29.2]} 39... Rb3 {[%clk 0:00:31.1]} 40. Re1 {[%clk 0:00:26.6]}
40... Nxf3 {[%clk 0:00:29]} 41. Re7 {[%clk 0:00:24.3]} 41... Ne5+ {[%clk
0:00:28.2]} 42. Kg2 {[%clk 0:00:21.6]} 42... Rb2+ {[%clk 0:00:28.7]} 43. Kg3
{[%clk 0:00:20.9]} 43... Rb3+ {[%clk 0:00:29.1]} 44. Kg2 {[%clk 0:00:20.7]}
44... Kf6 {[%clk 0:00:28.6]} 45. Rc7 {[%clk 0:00:18.6]} 45... Nxg4 {[%clk
0:00:27.9]} 46. Rxc6+ {[%clk 0:00:17.5]} 46... Kf5 {[%clk 0:00:28.8]} 47. Nxf7
{[%clk 0:00:16.9]} 47... Ne3+ {[%clk 0:00:28.9]} 48. Kf3 {[%clk 0:00:16.7]}
48... Nc4+ {[%clk 0:00:27.1]} 49. Kf2 {[%clk 0:00:16.7]} 49... a3 {[%clk
0:00:27.1]} 50. Nh6+ {[%clk 0:00:13]} 50... Ke5 {[%clk 0:00:24.3]} 51. Ra6
{[%clk 0:00:12.9]} 51... Rb2+ {[%clk 0:00:20.2]} 52. Kf3 {[%clk 0:00:11.9]}
52... a2 {[%clk 0:00:20.8]} 53. Nf7+ {[%clk 0:00:11.5]} 53... Kd4 {[%clk
0:00:21.2]} 54. Nxg5 {[%clk 0:00:10.3]} 54... Rb3+ {[%clk 0:00:21.9]} 55. Ke2
{[%clk 0:00:07.1]} 55... Ra3 {[%clk 0:00:22.8]} 56. Rh6 {[%clk 0:00:04]} 56...
Re3+ {[%clk 0:00:21.1]} 57. Kf2 {[%clk 0:00:03.3]} 57... a1=Q {[%clk 0:00:21.4]}
58. Rh4+ {[%clk 0:00:02]} 58... Re4 {[%clk 0:00:22.2]} 59. Nxe4 {[%clk
0:00:01.2]} 59... dxe4 {[%clk 0:00:23.1]} 0-1